Cogmind - Beta 17 @@@ ROGUE MODE // 2026.08.22 @ 00:34:05 Player: Fedop Result: Destroyed by P-80 Master with Gamma Rifle Performance ------------- Evolutions (8) 4000 Regions Visited (12) 2400 Robots Destroyed (300) 1500 Value Destroyed (8550) 8550 Prototype IDs (33) 660 Alien Tech Used (0) 0 Bonus (380) 380 TOTAL SCORE: 17490 Bonus ------- High Alert Combat Kills 380 Cogmind --------- Core Integrity 0/1450 Matter 300/300 Energy 196/770 System Corruption 22% Temperature Cool (0) Movement Flying (109) Ox1 Location -2/Research Parts ------- > --- POWER (2) -------- Light Antimatter Reactor > --- PROPULSION (8) --- Xenon Bombardment Thruster Biomechanical Wings > --- UTILITY (11) ----- Experimental Energy Well Advanced Signal Interpreter Armor Integrity Analyzer > --- WEAPON (2) ------- (None) > --- INVENTORY (5) ---- Impulse Thruster Array Advanced Transmission Jammer Advanced Reaction Control System Advanced Hacking Suite Peak State ------------ > --- POWER ------------ Micro Antimatter Reactor Micro Antimatter Reactor > --- PROPULSION ------- Biomechanical Wings Biomechanical Wings Field Propulsion Array Diametric Drive Q-thruster Impulse Thruster Array > --- UTILITY ---------- Large Storage Unit Advanced Sensor Array Advanced Signal Interpreter Advanced Melee Analysis Suite Advanced Melee Analysis Suite Advanced Melee Analysis Suite Armor Integrity Analyzer Nanoactuators Advanced Transmission Jammer Improved Core Shielding Centrium Light Armor Plating > --- WEAPON ----------- Lance Lance > --- INVENTORY -------- Advanced Surge Thruster Field Propulsion Array Q-thruster Experimental Energy Well ECM Suite Reaction Control System Advanced Reaction Control System Layered Heavy Armor Plating Centrium Light Armor Plating Advanced Thermal Shield EM Shield Hacking Suite Advanced Hacking Suite [Rating: 153] Favorites ----------- Power Light Nuclear Core Engine Light Ion Engine Power Core Light Nuclear Core Reactor Micro Antimatter Reactor Propulsion Wheel Treads Light Treads Wheel Wheel Hover Unit Gravmag System Flight Unit Biomechanical Wings Utility Large Storage Unit Device Advanced Sensor Array Storage Large Storage Unit Processor Advanced Melee Analysis Suite Hackware Hacking Suite Protection Improved Core Shielding Weapon Power Sword Energy Gun Improved EM Shotgun Energy Cannon Advanced Beam Cannon Ballistic Gun Enhanced Autogun Ballistic Cannon Mini Assault Cannon Launcher Mini Grenade Launcher Impact Weapon Powered Hammer Slashing Weapon Power Sword Piercing Weapon Heavy Pick Build | -11 -10 -9 -9 -8 -7 -6 -5 -4 -4 -4 -3 -2 ------- Run | Yrd Mat Mat Min Mat Fac Fac Fac Fac Upp Upp Res Res Slots Evolved 16 | . . 2 . 2 2 2 2 2 . . 2 2 Power 1 | . . . . . . . 1 . . . . . Propulsion 6 | . . 1 . 1 2 . . 1 . . . 1 Utility 9 | . . 1 . 1 . 2 1 1 . . 2 1 Weapon . | . . . . . . . . . . . . . Parts Attached 261 | 7 12 22 5 44 61 32 9 8 2 2 14 43 Power 39 | 1 1 2 1 7 10 4 1 2 . . 4 6 Engine 7 | 1 1 2 1 1 1 . . . . . . . Core 20 | . . . . 6 9 3 1 1 . . . . Reactor 12 | . . . . . . 1 . 1 . . 4 6 Propulsion 79 | 2 . 7 2 15 24 9 2 3 . 2 2 11 Treads 6 | 2 . 2 . . 1 . . 1 . . . . Leg . | . . . . . . . . . . . . . Wheel 33 | . . 5 2 13 13 . . . . . . . Hover 1 | . . . . . 1 . . . . . . . Flight 39 | . . . . 2 9 9 2 2 . 2 2 11 Utility 103 | 1 7 5 2 15 18 17 5 3 2 . 5 23 Device 45 | 1 1 . 1 5 9 10 2 3 . . 2 11 Storage 4 | . 2 . . 1 . . . . . . 1 . Processor 18 | . 1 . . . 3 3 1 . 1 . 2 7 Hackware 12 | . 1 1 . 2 2 3 2 . . . . 1 Protection 24 | . 2 4 1 7 4 1 . . 1 . . 4 Artifact . | . . . . . . . . . . . . . Weapon 40 | 3 4 8 . 7 9 2 1 . . . 3 3 Energy Gun 12 | 2 3 2 . 3 1 . . . . . 1 . Energy Cannon 3 | . . 3 . . . . . . . . . . Ballistic Gun 6 | 1 . 1 . 2 2 . . . . . . . Ballistic Cannon 2 | . 1 . . . 1 . . . . . . . Launcher 1 | . . 1 . . . . . . . . . . Special Weapon . | . . . . . . . . . . . . . Impact Weapon 3 | . . 1 . . 2 . . . . . . . Slashing Weapon 10 | . . . . 2 3 1 1 . . . 2 1 Piercing Weapon 3 | . . . . . . 1 . . . . . 2 Special Melee Weapon . | . . . . . . . . . . . . . Unidentified Prototypes 20 | . 1 2 1 3 1 3 1 . . . 1 7 Parts Lost 83 | . . 4 1 14 19 5 1 . 1 1 6 31 Power 8 | . . . . 2 1 1 . . . 1 . 3 Propulsion 39 | . . 2 1 6 11 2 1 . . . 3 13 Utility 24 | . . . . 3 3 2 . . 1 . 2 13 Weapon 12 | . . 2 . 3 4 . . . . . 1 2 Highest Loss Streak 22 | . . 2 1 4 4 3 1 . 1 1 2 22 To Critical Strikes . | . . . . . . . . . . . . . Average Backups 13 | 1 11 14 14 13 14 14 14 14 12 14 14 12 Power 1 | . 1 1 1 2 1 . . . . . . . Propulsion 1 | . . . 1 1 2 2 2 3 3 3 3 2 Utility 8 | . 6 7 6 6 8 8 10 11 9 11 9 9 Weapon 2 | . 3 4 4 3 2 2 1 . . . . . Tool/Special . | . . . . . . . . . . . . . Unused Backups 50 | . 3 8 . 4 14 10 1 1 1 . 3 5 Power 3 | . . 1 . 2 . . . . . . . . Propulsion 6 | . . . . . 2 3 . . . . . 1 Utility 29 | . 2 5 . . 8 7 1 1 1 . 2 2 Weapon 10 | . 1 2 . 1 3 . . . . . 1 2 Tool/Special 2 | . . . . 1 1 . . . . . . . Average Slot Usage (%) 93 | . 98 91 94 96 91 99 99 91 89 88 85 88 Engine 3 | . 14 10 11 1 . . . . . . . . Core 3 | . . . . 7 6 6 10 8 5 4 . . Reactor 1 | . . . . . . . . 1 5 5 8 7 Treads 5 | . 27 12 . . . . . . . . . . Wheel 12 | . . 15 32 33 25 . . . . . . . Flight 14 | . . . . 1 13 39 34 29 26 26 21 25 Device 8 | . 3 4 11 7 4 9 10 14 10 10 16 14 Storage 7 | . 12 10 11 9 7 6 5 5 5 5 4 4 Processor 6 | . 1 . . . 5 11 11 10 14 15 15 17 Hackware 4 | . 3 7 4 1 2 7 10 10 5 5 4 3 Protection 6 | . 5 9 2 16 8 3 . . 4 5 4 4 Energy Gun 5 | . 25 9 . 6 2 . . . . . . . Energy Cannon 2 | . . 11 21 1 . . . . . . . . Ballistic Gun 1 | . . . . 6 1 . . . . . . . Slashing Weapon 3 | . . . . 2 5 6 5 5 5 5 5 3 Piercing Weapon 1 | . . . . . . 2 5 5 5 5 2 4 Peak Build Rating 153 | 6 15 22 29 38 49 70 80 109 110 111 128 153 Average Rating 56 | 4 11 18 23 26 35 64 76 100 109 109 121 140 On Entrance 56 | . 6 15 20 20 28 48 67 79 109 110 105 127 Avg Prop Armor Cover (%) 6 | . . 7 . 1 6 . . 11 . . . 6 Naked Turns . | . . . . . . . . . . . . . Heaviest Build 67 | 6 34 39 47 53 51 41 41 50 50 49 59 67 Greatest Support 78 | 40 40 63 32 46 78 39 47 53 53 53 59 68 Greatest Overweight (x) 8 | . 1 8 1 2 6 1 . . . . . 2 Average Overweight (x) . | . . . 1 . . . . . . . . . Largest Inventory Capacity 15 | 5 15 15 15 15 15 15 15 15 15 15 15 15 Average Capacity 14 | 5 14 14 15 15 15 15 15 15 15 15 15 14 Most Carried 15 | 3 15 15 15 15 15 15 15 15 15 15 15 15 Average Carried 13 | 1 11 14 14 13 14 14 14 14 13 15 14 13 Final Capacity 15 | 5 15 15 15 15 15 15 15 15 15 15 15 5 Final Carried 15 | 3 15 15 15 15 15 15 15 15 15 15 15 5 Class Distribution -------------------- 32% | Mutant 24% | Scavenger-Mutant 8% | Hacker-Sprinter 8% | Scientist-Sprinter 8% | Sprinter 5% | Infiltrator-Ninja Dominant Class ---------------- Mutant | -10/Materials Mutant | -9/Materials Scavenger-Mutant | -9/Mines Scavenger-Mutant | -8/Materials Mutant | -7/Factory Sprinter | -6/Factory Hacker-Sprinter | -5/Factory Scientist-Sprinter | -4/Factory Scientist-Sprinter | -4/Upper Caves Scientist-Sprinter | -4/Upper Caves Scientist-Sprinter | -3/Research Sprinter | -2/Research Resources | -11 -10 -9 -9 -8 -7 -6 -5 -4 -4 -4 -3 -2 ----------- Run | Yrd Mat Mat Min Mat Fac Fac Fac Fac Upp Upp Res Res Matter Collected 5648 | 171 277 422 108 1273 1115 601 243 142 95 25 495 681 Remotely 10 | . . . . 10 . . . . . . . . Salvage Created 12787 | 102 727 2500 463 2666 2110 821 167 498 102 . 612 2019 Parts 680 | 9 32 162 18 121 97 32 11 13 8 . 43 134 Haulers Intercepted 14 | . 2 5 . 4 1 . . . . . . 2 Recyclers Shooed 12 | . . 2 2 1 4 1 . . . . . 2 Parts Field Recycled . | . . . . . . . . . . . . . Retrieved Matter . | . . . . . . . . . . . . . Parts Self-Destructed 11 | . . . . . . . . . 10 1 . . Prevented . | . . . . . . . . . . . . . Parts Restored 1 | . . . . . . 1 . . . . . . Broken 1 | . . . . . . 1 . . . . . . Kills | -11 -10 -9 -9 -8 -7 -6 -5 -4 -4 -4 -3 -2 ------- Run | Yrd Mat Mat Min Mat Fac Fac Fac Fac Upp Upp Res Res Combat Hostiles Destroyed 175 | . 13 38 3 45 33 8 3 1 4 . 6 21 Melee 72 | . . . . 4 25 8 3 1 4 . 6 21 Guns 65 | . 12 14 . 34 5 . . . . . . . Cannons 27 | . . 21 3 3 . . . . . . . . AOE 2 | . . 2 . . . . . . . . . . Classes Destroyed 17 | 2 6 3 . 2 2 . . . . . . 2 Worker 23 | . 1 8 1 4 4 1 . 1 . . 1 2 Builder 19 | . 1 3 . 5 3 1 . . . . . 6 Tunneler 8 | 2 . 1 1 3 1 . . . . . . . Hauler 14 | . 2 5 . 4 1 . . . . . . 2 Recycler 29 | 1 2 4 4 4 7 3 . 2 . . . 2 Mechanic 1 | . . . . 1 . . . . . . . . Operator 3 | . . 1 . 1 1 . . . . . . . Watcher 28 | . 1 4 . 4 1 4 1 3 . . 6 4 Swarmer 48 | . 4 6 3 12 9 4 1 . 4 . . 5 Cutter 14 | . . . . 5 3 2 . . . . 1 3 Grunt 62 | . 9 23 . 21 8 . . . . . . 1 Duelist 3 | . . 1 . 1 1 . . . . . . . Sentry 20 | . . 8 . 6 4 . . 1 . . 1 . Specialist 2 | . . . . . . . . . . . . 2 Hunter 1 | . . . . . 1 . . . . . . . Programmer 24 | . . . . . 7 2 2 . . . 4 9 Heavy 1 | . . . . . . . . . . . . 1 Best Kill Streak 10 | 3 3 10 4 6 4 4 2 3 4 . 2 8 Combat Bots Only 6 | . 3 5 3 6 4 3 2 1 4 . 2 4 Max Kills in Single Turn 3 | 1 2 3 1 2 1 1 1 1 1 . 1 1 Gunslinging 1 | . 1 1 . 1 . . . . . . . . Exploded 1 | . . 1 . . . . . . . . . . Melee 1 | . . . . 1 1 1 1 1 1 . 1 1 Uniques/NPCs Destroyed . | . . . . . . . . . . . . . Combat | -11 -10 -9 -9 -8 -7 -6 -5 -4 -4 -4 -3 -2 -------- Run | Yrd Mat Mat Min Mat Fac Fac Fac Fac Upp Upp Res Res Hostile Shots Fired 1456 | . 80 101 13 259 415 114 15 1 50 22 64 322 Missed 509 | . 28 32 2 60 150 59 6 1 28 14 32 97 Hits 947 | . 52 69 11 199 265 55 9 . 22 8 32 225 Melee 58 | . . 1 . 17 31 1 . . . . 4 4 Projectile 889 | . 52 68 11 182 234 54 9 . 22 8 28 221 AOE 3 | . . . . 1 1 1 . . . . . . Critical Strikes 55 | . 1 3 . 14 14 2 . . . . 4 17 Actively Blocked 4 | . . . . 1 1 . . . . . . 2 Part Disruptions 2 | . . . . . . 1 . . . . . 1 Damage Taken 13846 | . 721 949 100 2220 3228 753 175 . 261 95 783 4561 Core 3078 | . 205 194 8 262 535 161 22 . 66 14 141 1470 Absorbed by Shields 723 | . . . . 177 258 49 . . . . 24 215 Redirected to Shielding 395 | . . . . 105 89 4 . . 9 6 44 138 Ignored by Resistances 1174 | . . . . 90 94 20 . . 75 26 105 764 Regen/Repaired (Parts) 821 | . 106 234 . 75 23 . 57 . . . . 326 Core Remaining (%) 66 | 100 18 . 49 52 23 81 97 . . 93 89 . Volleys Fired 355 | 4 56 101 19 125 45 3 . . . . 2 . Largest 2 | 2 2 2 2 2 2 1 . . . . 1 . Hottest 136 | 80 105 136 136 123 110 40 . . . . 75 . Shots Fired 648 | 8 104 199 39 237 56 3 . . . . 2 . Gun 454 | 8 97 87 . 206 54 . . . . . 2 . Cannon 194 | . 7 112 39 31 2 3 . . . . . . Launcher . | . . . . . . . . . . . . . Special . | . . . . . . . . . . . . . Kinetic 170 | . 7 . . 139 21 3 . . . . . . Thermal 371 | 8 79 112 39 98 35 . . . . . . . Explosive . | . . . . . . . . . . . . . Electromagnetic 107 | . 18 87 . . . . . . . . 2 . Robot Hit Streak 14 | 7 14 13 7 13 7 . . . . . . . Robot Miss Streak 5 | . 5 3 2 4 4 1 . . . . . . Penetration Max . | . . . . . . . . . . . . . Secondary Targets 7 | . 3 1 . 3 . . . . . . . . Max Gunslinging Chain 1 | . 1 1 . 1 . . . . . . . . Shots Hit Robots 755 | 7 75 136 21 187 147 28 6 8 6 . 38 96 Core Hits 370 | 4 30 85 9 92 52 19 4 6 3 . 19 47 Critical Kills . | . . . . . . . . . . . . . Critical Parts Destroyed 9 | . . . . 4 5 . . . . . . . Critical Strikes 55 | . 1 . . 9 21 3 . 3 . . 4 14 Burn 5 | . . . . 3 2 . . . . . . . Destroy 3 | . . . . 1 2 . . . . . . . Blast 1 | . 1 . . . . . . . . . . . Smash 6 | . . . . 3 3 . . . . . . . Sever 23 | . . . . 2 14 1 . . . . 2 4 Impale 17 | . . . . . . 2 . 3 . . 2 10 Melee Attacks 698 | . . 1 2 47 163 82 61 31 9 . 87 215 Impact 37 | . . 1 2 19 15 . . . . . . . Slashing 367 | . . . . 28 148 56 5 2 2 . 54 72 Piercing 294 | . . . . . . 26 56 29 7 . 33 143 Sneak Attacks 53 | . . . . 8 18 5 . 5 . . 3 14 Combat Hostiles 5 | . . . . . 2 . . 1 . . 1 1 Follow-up Attacks 26 | . . . . . 2 1 4 1 1 . 3 14 Damage Inflicted 23374 | 77 1187 2947 452 4259 5275 1664 248 550 265 . 1783 4667 Guns 5490 | 77 1037 1152 . 2644 580 . . . . . . . Cannons 2316 | . 68 1423 444 355 26 . . . . . . . Explosions 617 | . 82 349 . . . 186 . . . . . . Melee 14875 | . . . . 1215 4669 1478 248 550 265 . 1783 4667 Ramming 76 | . . 23 8 45 . . . . . . . . Kinetic 1955 | . 68 . . 1593 294 . . . . . . . Thermal 4838 | 77 827 1772 444 1406 312 . . . . . . . Explosive . | . . . . . . . . . . . . . Electromagnetic 1630 | . 292 1152 . . . 186 . . . . . . Impact 1129 | . . . . 455 674 . . . . . . . Slashing 7704 | . . . . 760 3995 774 113 102 40 . 1088 832 Piercing 6042 | . . . . . . 704 135 448 225 . 695 3835 Highest Corruption 21 | . . 3 3 3 7 2 . . . . 4 21 Average Corruption 3 | . . 3 3 2 4 1 . . . . 2 2 Corruption Purged 10 | . . . . . 8 2 . . . . . . Corruption Blocked . | . . . . . . . . . . . . . Effects 106 | . . 34 12 9 17 6 . . . . 14 14 Message Errors 20 | . . 9 1 2 3 . . . . . 2 3 Matter Fused 31 | . . 5 3 2 7 2 . . . . 9 3 Heat Flow Errors 12 | . . 5 1 1 1 1 . . . . 1 2 Energy Discharges 14 | . . 2 3 1 3 2 . . . . . 3 Parts Rejected 2 | . . 2 . . . . . . . . . . Parts Fused 1 | . . . 1 . . . . . . . . . Data Loss (minor) 8 | . . 4 . 1 2 . . . . . . 1 Data Loss (major) 6 | . . 1 . . . 1 . . . . 2 2 Misfires 4 | . . 2 1 . 1 . . . . . . . Alerts 4 | . . 2 2 . . . . . . . . . Weapon Failures 4 | . . 2 . 2 . . . . . . . . Overload Shots . | . . . . . . . . . . . . . Overflow Damage 2326 | . 34 43 4 349 753 267 10 93 48 . 34 691 Projectiles 20 | . 9 7 4 . . . . . . . . . Explosions 61 | . 25 36 . . . . . . . . . . Melee 2245 | . . . . 349 753 267 10 93 48 . 34 691 Knockbacks 7 | . . . . 2 5 . . . . . . . Impact 6 | . . . . 2 4 . . . . . . . Kinetic . | . . . . . . . . . . . . . Secondary 1 | . . . . . 1 . . . . . . . Self-Inflicted Damage 218 | . 62 132 3 21 . . . . . . . . Shots 5 | . 2 3 . . . . . . . . . . Rammed 12 | . . 2 3 7 . . . . . . . . Targets Rammed 12 | . . 2 3 7 . . . . . . . . Kicked . | . . . . . . . . . . . . . Crushed . | . . . . . . . . . . . . . Highest Temperature 412 | 36 270 398 216 342 342 330 299 15 . . 115 412 Average Temperature 85 | 16 76 110 69 85 71 24 80 8 . . 46 103 Received Heat Transfer 2227 | . 318 399 . 798 287 398 . . . . 27 . Effects 18 | . 3 3 . 4 2 . . . . . . 6 Shutdowns 4 | . . 1 . . . . . . . . . 3 Energy Bleed 3 | . 1 . . 1 1 . . . . . . . Interference 7 | . 2 2 . 2 . . . . . . . 1 Short Circuit 2 | . . . . . . . . . . . . 2 Damage (minor) 2 | . . . . 1 1 . . . . . . . Siege Activations . | . . . . . . . . . . . . . Martial Activations . | . . . . . . . . . . . . . Shielding Activations . | . . . . . . . . . . . . . Robots Disrupted . | . . . . . . . . . . . . . Combat Hostiles . | . . . . . . . . . . . . . Robots Corrupted 12 | . 1 1 . 6 4 . . . . . . . Combat Hostiles 9 | . 1 1 . 4 3 . . . . . . . Parts Fried 25 | . 2 7 . 8 6 2 . . . . . . Impact Corruptions 28 | . . . . 12 16 . . . . . . . Robots Melted . | . . . . . . . . . . . . . Combat Hostiles . | . . . . . . . . . . . . . Parts Melted 12 | . 1 3 2 5 1 . . . . . . . Heat Transferred 9135 | 175 1849 2842 777 2738 754 . . . . . . . Parts Sabotaged . | . . . . . . . . . . . . . Parts Stolen . | . . . . . . . . . . . . . Parts Stripped . | . . . . . . . . . . . . . Power Chain Reactions 8 | . 2 6 . . . . . . . . . . Alert | -11 -10 -9 -9 -8 -7 -6 -5 -4 -4 -4 -3 -2 ------- Run | Yrd Mat Mat Min Mat Fac Fac Fac Fac Upp Upp Res Res Maximum Alert Level 3 | . . 2 1 3 3 1 . . . . . 2 Low Security (%) 50 | 100 100 25 63 35 . 4 100 100 . . 100 74 Level 1 37 | . . 39 36 39 84 95 . . . . . 15 Level 2 11 | . . 34 . 22 13 . . . . . . 9 Level 3 . | . . . . 3 2 . . . . . . . Level 4 . | . . . . . . . . . . . . . Level 5 . | . . . . . . . . . . . . . High Security . | . . . . . . . . . . . . . Max Security . | . . . . . . . . . . . . . Peak Influence 743 | 10 85 675 262 743 737 397 190 84 . . 63 482 Initial 360 | . . 18 262 . 336 360 151 44 . . 33 . Average 201 | 2 20 302 144 302 351 273 132 39 . . 12 126 Influence Increases 7540 | 15 448 1252 102 1525 1341 683 318 166 90 60 440 1100 Destroy 0b10 Robot/C 3500 | . 260 760 60 900 660 160 60 20 80 . 120 420 Destroy 0b10 Robot/NC 625 | 15 35 130 30 130 90 45 5 30 . . 35 80 Destroy Leader 904 | . 76 208 10 206 174 48 12 16 10 . 42 102 Allied During Kill 6 | . . . . 6 . . . . . . . . Successful Hack 411 | . 20 46 . 33 64 85 33 . . . 73 57 Disable Machine 135 | . 30 15 . 15 15 30 15 . . . 15 . Destroy Structure 624 | . 12 33 2 10 23 45 88 40 . . 80 291 Partial Spotted 330 | . 15 . . . 45 45 45 45 . . 60 75 Lose Combat Pursuer 1005 | . . 60 . 225 270 225 60 15 . 60 15 75 Influence Decreases 7244 | 15 404 621 777 785 1345 1110 536 227 102 28 490 804 Entered New Map 1457 | . . 26 413 . 404 376 158 47 12 4 17 . Time Decay 4564 | 15 404 555 354 515 691 514 368 180 80 24 360 504 Lost Part 810 | . . 40 10 140 190 50 10 . 10 . 60 300 Lost Ally 210 | . . . . 130 60 20 . . . . . . Purge Threat 203 | . . . . . . 150 . . . . 53 . Squads Dispatched 68 | . 5 6 . 12 10 11 2 1 . . 9 12 Investigation 17 | . 3 3 . 3 1 2 1 . . . 2 2 Extermination 22 | . . . . . 6 3 1 1 . . 5 6 Reinforcement 25 | . 2 3 . 5 3 6 . . . . 2 4 Assault 2 | . . . . 2 . . . . . . . . Garrison 2 | . . . . 2 . . . . . . . . Intercept . | . . . . . . . . . . . . . Searches Triggered . | . . . . . . . . . . . . . Construction Impeded . | . . . . . . . . . . . . . Haulers Reinforced 2 | . . . . . 2 . . . . . . . Active Scanning Responses . | . . . . . . . . . . . . . Cargo Convoy Interrupts 1 | . . . . . . 1 . . . . . . Stealth | -11 -10 -9 -9 -8 -7 -6 -5 -4 -4 -4 -3 -2 --------- Run | Yrd Mat Mat Min Mat Fac Fac Fac Fac Upp Upp Res Res Distress Signals 21 | . 2 4 . 7 4 1 1 . . . . 2 Communications Jammed 65 | . . . . . . 39 . . . . 6 20 Distress Signals 53 | . . . . . . 39 . . . . 6 8 Times Spotted 382 | . 29 51 3 83 64 41 15 6 5 6 25 54 Peak Tracking Total 8 | . 4 7 3 7 6 6 5 1 5 6 2 8 Tactical Retreats 64 | . 1 4 . 11 15 10 4 1 . 1 7 10 ECM-based Alert Blocks 22 | . . . . . . 4 2 . . . 7 9 Traps | -11 -10 -9 -9 -8 -7 -6 -5 -4 -4 -4 -3 -2 ------- Run | Yrd Mat Mat Min Mat Fac Fac Fac Fac Upp Upp Res Res Traps Triggered 15 | . 1 3 . 3 3 1 1 . . . 3 . Indirectly . | . . . . . . . . . . . . . Trap Hack Attempts . | . . . . . . . . . . . . . Triggered . | . . . . . . . . . . . . . Disarmed . | . . . . . . . . . . . . . Reprogrammed . | . . . . . . . . . . . . . Reused . | . . . . . . . . . . . . . Traps Extracted . | . . . . . . . . . . . . . Installed . | . . . . . . . . . . . . . Triggered . | . . . . . . . . . . . . . Machines | -11 -10 -9 -9 -8 -7 -6 -5 -4 -4 -4 -3 -2 ---------- Run | Yrd Mat Mat Min Mat Fac Fac Fac Fac Upp Upp Res Res Machines Disabled 9 | . 2 1 . 1 1 2 1 . . . 1 . Max in Single Turn 2 | . 1 1 . 1 1 2 1 . . . 1 . Garrison Access 5 | . . . . . 1 2 1 . . . 1 . Machines Repaired . | . . . . . . . . . . . . . Machines Dismantled . | . . . . . . . . . . . . . Machines Sabotaged . | . . . . . . . . . . . . . Overloaded Fab Kills . | . . . . . . . . . . . . . Hacking | -11 -10 -9 -9 -8 -7 -6 -5 -4 -4 -4 -3 -2 --------- Run | Yrd Mat Mat Min Mat Fac Fac Fac Fac Upp Upp Res Res Machines Accessed 99 | . 9 12 1 10 18 12 8 3 1 1 12 12 Terminals 52 | . 6 8 . 8 9 4 4 . . . 7 6 Fabricators 5 | . . . . . 1 1 . 2 . . 1 . Repair Stations 13 | . 1 2 . 1 2 3 1 . . . 1 2 Recycling Units 7 | . 2 1 . . 1 1 1 . . . . 1 Scanalyzers 12 | . . 1 . 1 4 1 1 1 . . 2 1 Garrison Access 7 | . . . . . 1 2 1 . . . 1 2 Total Hacks 275 | . 35 28 1 30 48 32 19 21 1 1 31 28 Successful 170 | . 20 22 1 17 26 16 14 20 1 1 20 12 Failed 99 | . 15 5 . 12 21 15 4 1 . . 10 16 Catastrophic 12 | . 1 . . 1 2 2 1 . . . 3 2 Database Lockouts 6 | . . 1 . 1 1 1 1 . . . 1 . Manual 112 | . 27 23 . 16 17 8 6 . . . 6 9 Terminals 154 | . 28 21 . 23 27 15 10 . . . 17 13 Fabricators 10 | . . . . . 1 2 . 4 . . 3 . Repair Stations 38 | . 3 4 . 4 4 8 4 . . . 2 9 Recycling Units 10 | . 4 1 . . 2 1 1 . . . . 1 Scanalyzers 52 | . . 2 . 3 13 4 3 17 . . 8 2 Garrison Access 8 | . . . . . 1 2 1 . . . 1 3 Terminal Hacks 50 | . 4 10 1 8 7 5 4 . 1 1 8 1 Record 8 | . 1 . . . . . . . . 1 5 1 Part Schematic 7 | . 3 1 . 1 1 1 . . . . . . Robot Analysis 8 | . . 4 . 3 1 . . . . . . . Prototype ID Bank 7 | . . 2 . 2 2 1 . . . . . . Open Door 2 | . . . 1 . . . . . 1 . . . Open DSF 2 | . . . . . 1 . 1 . . . . . Branch Access Points 1 | . . 1 . . . . . . . . . . Terminal Index 1 | . . . . . . . . . . . 1 . Alert Level 1 | . . . . . . 1 . . . . . . Unreport Threat 2 | . . . . . . 1 . . . . 1 . Assault Status 1 | . . 1 . . . . . . . . . . Hauler Manifests 2 | . . 1 . . . . 1 . . . . . Registered Components 5 | . . . . 1 1 1 1 . . . 1 . Registered Prototypes 3 | . . . . 1 1 . 1 . . . . . Fabricator Hacks 6 | . . . . . 1 . . 3 . . 2 . Network Status 1 | . . . . . . . . 1 . . . . Load Schematic 3 | . . . . . . . . 2 . . 1 . Build 2 | . . . . . 1 . . . . . 1 . Repair Station Hacks 24 | . 3 4 . 2 2 2 4 . . . . 7 Scan Component 13 | . 1 2 . 1 1 2 2 . . . . 4 Repair 10 | . 1 2 . 1 1 . 2 . . . . 3 Refit 1 | . 1 . . . . . . . . . . . Recycling Unit Hacks 9 | . 3 1 . . 2 1 1 . . . . 1 Report Inventory 7 | . 2 1 . . 1 1 1 . . . . 1 Retrieve Components 2 | . 1 . . . 1 . . . . . . . Scanalyzer 40 | . . 2 . 2 8 2 2 17 . . 6 1 Insert Component 12 | . . . . . 2 2 . 6 . . 2 . Analyze 10 | . . . . . 1 . . 6 . . 3 . Retrieve Study 18 | . . 2 . 2 5 . 2 5 . . 1 1 Garrison Access Hacks 5 | . . . . . 1 2 1 . . . 1 . Seal Access 5 | . . . . . 1 2 1 . . . 1 . Unauthorized Hacks 35 | . 10 5 . 4 5 4 2 . . . 3 2 Terminals 35 | . 10 5 . 4 5 4 2 . . . 3 2 Assimilate 2 | . . . . . . 1 1 . . . . . Botnet 27 | . 4 5 . 4 5 3 1 . . . 3 2 Skim 6 | . 6 . . . . . . . . . . . Fabricators . | . . . . . . . . . . . . . Repair Stations . | . . . . . . . . . . . . . Recycling Units . | . . . . . . . . . . . . . Scanalyzers . | . . . . . . . . . . . . . Garrison Access . | . . . . . . . . . . . . . Data Cores Recovered 1 | . . . . . 1 . . . . . . . Used . | . . . . . . . . . . . . . Hacking Detections 82 | . 7 10 . 10 16 9 5 3 . . 10 12 Full Trace Events 13 | . 1 1 . 3 1 2 1 . . . 2 2 Feedback Events 2 | . . . . . . 1 . . . . 1 . Corruption 2 | . . . . . . 1 . . . . 1 . Feedback Blocked . | . . . . . . . . . . . . . Robot Schematics Acquired . | . . . . . . . . . . . . . Robots Built 3 | . . . . . 3 . . . . . . . Authchips . | . . . . . . . . . . . . . Time 134 | . . . . . 134 . . . . . . . Total Robot Build Rating 12 | . . . . . 12 . . . . . . . Part Schematics Acquired 14 | . 3 1 . 1 2 . . 5 . . 2 . Parts Built 2 | . . . . . . . . . . . 2 . Authchips . | . . . . . . . . . . . . . Time 47 | . . . . . . . . . . . 47 . Total Part Build Rating 10 | . . . . . . . . . . . 10 . Part Studies Acquired 18 | . . 2 . 2 5 . 2 5 . . 1 1 Parts Repaired 10 | . 1 2 . 1 1 . 2 . . . . 3 Time 443 | . 13 64 . 38 19 . 88 . . . . 221 Parts Recycled . | . . . . . . . . . . . . . Recycled Matter . | . . . . . . . . . . . . . Retrieved Matter . | . . . . . . . . . . . . . Retrieved Components 4 | . 3 . . . 1 . . . . . . . Parts Scanalyzed 9 | . . . . . 2 . . 5 . . 2 . Part Schematics Acquired 8 | . . . . . 1 . . 5 . . 2 . Parts Damaged 1 | . . . . . 1 . . . . . . . Bothacking | -11 -10 -9 -9 -8 -7 -6 -5 -4 -4 -4 -3 -2 ------------ Run | Yrd Mat Mat Min Mat Fac Fac Fac Fac Upp Upp Res Res Used RIF Installer . | . . . . . . . . . . . . . Robots Hacked . | . . . . . . . . . . . . . Non-combat . | . . . . . . . . . . . . . Combat . | . . . . . . . . . . . . . Robot Hacks Applied . | . . . . . . . . . . . . . Relay Couplers Released 7 | . . . . . 4 3 . . . . . . Machine Destruction 3 | . . . . . . 3 . . . . . . Programmers 4 | . . . . . 4 . . . . . . . Fabnet Peak Effective % . | . . . . . . . . . . . . . Robots Rewired . | . . . . . . . . . . . . . Allies Hacked . | . . . . . . . . . . . . . Hacks Repelled . | . . . . . . . . . . . . . Allies | -11 -10 -9 -9 -8 -7 -6 -5 -4 -4 -4 -3 -2 -------- Run | Yrd Mat Mat Min Mat Fac Fac Fac Fac Upp Upp Res Res Total Allies 6 | . . . 3 . 3 . . . . . . . Largest Group 3 | . . . 3 3 3 . . . . . . . Highest-Rated Group 60 | . . . 40 40 60 . . . . . . . Highest-Rated Ally 20 | . . . 16 16 20 . . . . . . . Total Orders 15 | . . . 6 4 . 5 . . . . . . EXPLORE 12 | . . . 4 4 . 4 . . . . . . RETURN 3 | . . . 2 . . 1 . . . . . . Ally Attacks 21 | . . . . 17 4 . . . . . . . Total Damage 248 | . . . . 164 84 . . . . . . . Kills . | . . . . . . . . . . . . . Allies Corrupted 2 | . . . . . 2 . . . . . . . Allies Melted . | . . . . . . . . . . . . . Intel | -11 -10 -9 -9 -8 -7 -6 -5 -4 -4 -4 -3 -2 ------- Run | Yrd Mat Mat Min Mat Fac Fac Fac Fac Upp Upp Res Res Active Infowar (turns) 8107 | 17 410 202 152 552 825 1191 806 372 147 160 1379 1894 Optics 1383 | . . . . . . . . . . . 577 806 Sensors 5697 | . . . . 84 96 1143 766 356 146 160 1325 1621 A.S.S. 5 | . . . . . . . . . . . . 5 Seismic 1978 | 17 410 202 152 468 729 . . . . . . . T.N.C. 32 | . . . . . . . . . . . . 32 Jamming 3455 | . . . . . . 90 . 283 2 . 1226 1854 ECM 1838 | . . . . . . 46 40 1 . . 684 1067 Robot Analysis Total 8 | . . 4 . 3 1 . . . . . . . Derelict Logs Recovered 3 | . . . 2 . . . . . 1 . . . Drone Launches 24 | . . . 6 12 . 6 . . . . . . Drone Recoveries 6 | . . . 2 . . 4 . . . . . . Exploration | -11 -10 -9 -9 -8 -7 -6 -5 -4 -4 -4 -3 -2 ------------- Run | Yrd Mat Mat Min Mat Fac Fac Fac Fac Upp Upp Res Res Turns Passed 16160 | 110 1901 2317 820 1882 2800 1419 853 372 179 191 1380 1936 Spaces Moved 16648 | 71 1018 1355 711 1212 2454 1797 1330 875 517 415 2483 2410 Core 31 | 28 . 1 . . . . . . . . . 2 Treads 1672 | 43 1018 611 . . . . . . . . . . Legs . | . . . . . . . . . . . . . Wheels 4599 | . . 743 711 1212 1933 . . . . . . . Hover . | . . . . . . . . . . . . . Flight 10346 | . . . . . 521 1797 1330 875 517 415 2483 2408 Fastest Speed 17 | 50 160 80 95 70 21 20 24 21 28 28 28 17 Average Speed 57 | 116 160 129 95 85 73 24 24 25 28 28 29 25 Slowest Speed 525 | 160 240 450 98 130 525 107 28 51 28 29 32 170 Overloaded Moves 1 | . . . . . . 1 . . . . . . Propulsion Burnouts . | . . . . . . . . . . . . . Robots Hopped 19 | . . . . . . 6 . . . . 7 6 Potential Cave-ins . | . . . . . . . . . . . . . Cave-ins Triggered . | . . . . . . . . . . . . . Exploration Rate (%) 53 | 4 98 93 99 81 60 54 17 15 54 32 37 47 Regions Visited 12 Branch Regions 3 Pre-discovered Areas 1 | . . . 1 . . . . . . . . . Known Exits Taken 8 | . 1 1 1 . . . 1 1 1 1 1 . Unknown Exits Taken 4 | 1 . . . 1 1 1 . . . . . . Scrap Searched 6 | . . . 2 . . . . . 1 3 . . Spaces Dug 275 | . . 1 2 3 22 45 44 20 . . 40 98 Terrain Destroyed 308 | . 7 27 2 3 22 45 44 20 . . 40 98 Melee 275 | . . 1 2 3 22 45 44 20 . . 40 98 Projectile . | . . . . . . . . . . . . . AOE 33 | . 7 26 . . . . . . . . . . Terrain Rammed . | . . . . . . . . . . . . . Walls Destroyed . | . . . . . . . . . . . . . Machines Disabled . | . . . . . . . . . . . . . Actions | -11 -10 -9 -9 -8 -7 -6 -5 -4 -4 -4 -3 -2 --------- Run | Yrd Mat Mat Min Mat Fac Fac Fac Fac Upp Upp Res Res Total 21572 | 87 1183 1715 807 1796 3147 2633 1743 964 534 485 2970 3508 Wait 2899 | 3 61 167 56 255 248 635 309 19 2 64 326 754 Move 16600 | 70 1017 1354 710 1211 2453 1786 1329 874 516 414 2468 2398 Hop 16 | . . . . . . 4 . . . . 6 6 Pick Up 206 | 2 19 27 2 27 42 24 11 6 3 1 11 31 Fast Attach 157 | 7 7 15 1 22 40 18 3 8 . 1 5 30 Attach 102 | . . 5 3 22 22 9 4 2 1 . 10 24 Detach 73 | 1 3 1 2 14 18 9 2 3 . . 3 17 Swap 216 | . 8 19 6 34 51 30 18 6 4 2 16 22 Drop 238 | . 12 23 3 32 59 36 11 17 1 3 9 32 Fire 355 | 4 56 101 19 125 45 3 . . . . 2 . Melee 659 | . . 1 2 47 161 79 56 29 7 . 83 194 Ram 11 | . . 1 3 7 . . . . . . . . Kick . | . . . . . . . . . . . . . Crush 1 | . . 1 . . . . . . . . . . Escape Stasis 39 | . . . . . 8 . . . . . 31 . Rewire . | . . . . . . . . . . . . . Trap . | . . . . . . . . . . . . . Miscellaneous . | . . . . . . . . . . . . . Route ------- -11/Scrapyard -10/Materials (discovered 5 exits: *Mat x3 / [*Min] / *Sub) -9/Materials (discovered 4 exits: *Mat x3 / *Min) -9/Mines (discovered 2 exits: *Mat x2) -8/Materials (discovered 3 exits: *Fac x3) -7/Factory (discovered 6 exits: *Fac x4 / Sto / [*Low]) -6/Factory -5/Factory -4/Factory -4/Upper Caves -4/Upper Caves -3/Research -2/Research History --------- Turn | Location | Event 9 | -11/Scrapyard | Discovered new exit (range 15) 111 | -11/Scrapyard | Entered Materials 235 | -10/Materials | Discovered new exit (range 14) 304 | -10/Materials | Build established: Mutant 611 | -10/Materials | Derelicts attacked the area 792 | -10/Materials | Core integrity fell below 50% 1170 | -10/Materials | Discovered new exit (range 16) 1220 | -10/Materials | Discovered new exit (range 16) 1558 | -10/Materials | Discovered new exit (range 7) 1643 | -10/Materials | Identified exit to Materials 1690 | -10/Materials | Learned Storage stockpile data 1725 | -10/Materials | Learned location of 2 exits from Materials 1752 | -10/Materials | Identified exit to Subcaves 1774 | -10/Materials | Learned location of 2 exits from Mines 1820 | -10/Materials | Learned Storage security intel 1954 | -10/Materials | Repaired Lgt. Treads 1971 | -10/Materials | Core integrity fell below 20% 2012 | -10/Materials | Entered another Materials area 2012 | -9/Materials | Evolved 2 slots: Propulsion x1, Utility x1 2013 | -9/Materials | Identified exit to Mines 2013 | -9/Materials | Identified exit to Materials 2898 | -9/Materials | Discovered exit to Materials (range 14) 3205 | -9/Materials | Central database locked down 3407 | -9/Materials | Discovered exit to Materials (range 11) 3696 | -9/Materials | Repaired Lrg. Storage Unit 3899 | -9/Materials | Build established: Scavenger-Mutant 4062 | -9/Materials | Repaired Imp. Light Armor Plating 4216 | -9/Materials | Build established: Mutant 4329 | -9/Materials | Entered Mines 4591 | -9/Mines | Build established: Scavenger-Mutant 4601 | -9/Mines | Found the Drone Emporium 4622 | -9/Mines | Found Prototype Device 4622 | -9/Mines | Identified Decoy Drone Bay 4797 | -9/Mines | Learned location of Storage (-7) 4809 | -9/Mines | Learned Materials terminal intel 4820 | -9/Mines | Assisted by bots powering up and referring to "LRC-V3" 5092 | -9/Mines | Core integrity fell below 50% 5149 | -9/Mines | Entered Materials 5149 | -8/Materials | Accompanied by 3 allies 5149 | -8/Materials | Evolved 2 slots: Propulsion x1, Utility x1 5150 | -8/Materials | Loaded intel: 11 terminal locations 5194 | -8/Materials | Discovered new exit (range 43) 5355 | -8/Materials | Lost 3 allies 5618 | -8/Materials | Discovered new exit (range 42) 5666 | -8/Materials | Discovered new exit (range 35) 5806 | -8/Materials | Lost 4 parts (1p1n2w) 6582 | -8/Materials | Central database locked down 6749 | -8/Materials | First assault squad dispatched 6833 | -8/Materials | Repaired Imp. Propulsion Shielding 6927 | -8/Materials | Garrison activated, responded to threat 6987 | -8/Materials | Lost 3 parts (2n1u) 7031 | -8/Materials | Entered Factory 7031 | -7/Factory | Evolved 2 slots: Propulsion x2 7032 | -7/Factory | Identified exit to Storage 7763 | -7/Factory | Lost 4 parts (2n1u1w) 7770 | -7/Factory | Discovered new exit (range 11) 8549 | -7/Factory | Core integrity fell below 50% 8769 | -7/Factory | Fabricated B-48 Gladiator? 8968 | -7/Factory | Discovered new exit (range 12) 8982 | -7/Factory | Build established: Mutant 9585 | -7/Factory | Discovered new exit (range 16) 9666 | -7/Factory | Central database locked down 9726 | -7/Factory | Discovered new exit (range 15) 9779 | -7/Factory | Repaired Cesium-ion Thruster+ 9786 | -7/Factory | Discovered new exit (range 4) 9831 | -7/Factory | Entered another Factory area 9831 | -6/Factory | Evolved 2 slots: Utility x2 9886 | -6/Factory | Watched by a mysterious "MATRIX" hacker 10083 | -6/Factory | Build established: Hacker-Sprinter 10370 | -6/Factory | Lost 3 parts (2n1u) 10444 | -6/Factory | Central database locked down 10633 | -6/Factory | Cargo convoy interrupted 11145 | -6/Factory | Spotted B-75 Beast 11216 | -6/Factory | Build established: Sprinter 11239 | -6/Factory | Discovered new exit (range 16) 11250 | -6/Factory | Entered another Factory area 11250 | -5/Factory | Evolved 2 slots: Power x1, Utility x1 11501 | -5/Factory | Central database locked down 11502 | -5/Factory | Discovered new exit (range 10) 11600 | -5/Factory | Repaired Xenon Bombardment Thruster? 11619 | -5/Factory | Build established: Hacker-Sprinter 11774 | -5/Factory | Identified exit to Factory 11824 | -5/Factory | Repaired Xenon Bombardment Thruster? 12103 | -5/Factory | Entered another Factory area 12103 | -4/Factory | Evolved 2 slots: Propulsion x1, Utility x1 12212 | -4/Factory | Discovered new exit (range 15) 12446 | -4/Factory | Build established: Scientist-Sprinter 12475 | -4/Factory | Identified exit to Upper Caves 12475 | -4/Factory | Entered Upper Caves 12517 | -4/Upper Caves | Identified exit to Upper Caves 12654 | -4/Upper Caves | Entered another Upper Caves area 12655 | -4/Upper Caves | Encountered a Warlord checkpoint 12694 | -4/Upper Caves | Entered a destroyed Warlord outpost 12698 | -4/Upper Caves | Discovered new exit (range 14) 12845 | -4/Upper Caves | Identified exit to Research 12845 | -4/Upper Caves | Entered Research 12845 | -3/Research | Evolved 2 slots: Utility x2 12858 | -3/Research | Central database locked down 13941 | -3/Research | Fabricated Power Sword? 14142 | -3/Research | Build established: Infiltrator-Ninja 14185 | -3/Research | Discovered new exit (range 17) 14225 | -3/Research | Identified exit to Research 14225 | -3/Research | Entered another Research area 14225 | -2/Research | Evolved 2 slots: Propulsion x1, Utility x1 14482 | -2/Research | Spotted B-90 Cyclops 14528 | -2/Research | Spotted B-90 Cyclops 14648 | -2/Research | Lost 4 parts (1n3u) 14653 | -2/Research | Found Prototype Device 14664 | -2/Research | Identified Active Sensor Suite 14864 | -2/Research | Repaired Broken Q-thruster+ 14893 | -2/Research | Repaired Lrg. Storage Unit 15008 | -2/Research | Repaired Broken Biomechanical Wings 15115 | -2/Research | Found Prototype Processor 15115 | -2/Research | Identified Spectral Analyzer 15734 | -2/Research | Found Prototype Processor 15734 | -2/Research | Identified Exp. Core Analyzer 16108 | -2/Research | System corruption reached 10% 16127 | -2/Research | Core integrity fell below 50% 16142 | -2/Research | Core integrity fell below 20% 16161 | -2/Research | Destroyed by P-80 Master with Gamma Rifle Last Messages --------------- 16135_ Adv. Melee Analysis Suite destroyed. 16135_ Penetrated by Slug. 16138_ Lance destroyed. 16139_ U-05 Engineer builds a Door. 16140_ Dropped Lrg. Storage Unit. 16141_ Penetrated by Slug. 16141_ U-05 Engineer destroyed. 16141_ Penetrated by Slug. 16141_ Slug penetrates Wall. 16145_ Penetrated by Slug. 16149_ Acquired Lgt. Antimatter Reactor. 16150_ System corrupted: Energy discharge (-15). 16152_ Acquired Xenon Bombardment Thruster+. 16154_ Acquired 20 matter. 16156_ Acquired Xenon Bombardment Thruster+. 16158_ Slug penetrates Wall. 16158_ Acquired Xenon Bombardment Thruster+. 16159_ M-28 Smith repairs P-80 Master Adv. Heat Sink. 16159_ Xenon Bombardment Thruster+ destroyed. 16160_ Acquired 10 matter. Map ----- +----------------------------------------------------+ | ? #?# ! # #?? #???????????? | | #?# # #?? #???????????? | | #?# # #? #???????????? | | #?# # # #???????????? | | #?######+##############+### #???????????? | | ?? ###### #???????????? | | ???? + #???????????? | | ??????# #???????????? | | ??????###### #???????????? | | ???????????# ######+######+##########?????????? | | ???????????# ## # #] +?????????? | | ############ ## # # #?????????? | | ## #""" # #?????????? | | !!## #"T # #?????????? | | ==%+| #""" # ] #?????????? | | !##[ # # #???????### | | #+######+######### # " % #????? | | #? ??????# # ##+###??? | | # ????# ########### % ### | | # #???# / ! | | #[[ #???# ########### *!##########?? | | #[[ #???# #??###?#####*##??????????? | | !#[[ #???# #########??#=#???????????? | | # #???########## *#?##%##??????????? | | # #?????# # T" ###%! ##?????????? | | # #?????# @p ""p !=%| =##?????????? | | ##########?????# *% #mpY ###!%=##?????????? | | #??????????????# # #?####!#?????????? | | #??????????????# ## ##?????##?????????? | | #####??????????????# [%## ########??????????? | | ???????????????????######p## + #??????????? | | ????????????????????##??#*p # #??????????? | | ?????????????????######## # #??????????? | | ?????????????????# # # #??????????? | | ?????????????????# # # #??????????? | | ?????????????????# # # #??????????? | | ?????????????????# + ########??????????? | | ?????????????????# # #?#######?????????? | | ?????????????????# # # #?????????? | | ?????????????????####"###!m! # * #?????????? | | ????????????????????###?#%[!! + #?????????? | | ????????????????????#####+%# #########?????????? | | ????????????????????# !!%!!# # #??????????? | | ????????????????????# ==|=!! # #??????????? | | ????????????????????# !!!! # #??????????? | | ????????????????????# !*+ + #??????????? | | ????????????????????# # # #??????????? | | ????????????????????# # # #??????????? | | ????????????????????######## ###########???????? | | ???????????????????????????# # * #???????? | +----------------------------------------------------+ Best States ------------- Heat Dissipation 49 Energy Generation 37 Energy Capacity 800 Matter Stores 300 Matter Capacity 300 Sight Range 20 Robot Scan Range 16 Terrain Scan Density 10 ECM Strength 1 Jamming Range 16 Additional Mass Support 9 Armor Coverage 600 Resistance: KI 30 Resistance: EM 25 Core Shielding 30 Propulsion Shielding 66 Melee Speed Boost 30 Evasion (%) 78 Targeting Accuracy 5 Melee Accuracy 24 Target Analysis 5 Core Analysis 6 Armor Integrity Analysis 30 Recoil Reduction 3 Particle Charging 15 Offensive Hacking 22 Defensive Hacking 10 Item Schematics ----------------- Lrg. Storage Unit | -10/Materials | Hacked Wheel | -10/Materials | Hacked Lgt. Ion Engine | -10/Materials | Hacked Lgt. Armor Plating | -9/Materials | Hacked Melee Analysis Suite | -8/Materials | Hacked Power Sword | -7/Factory | Hacked Microactuators | -7/Factory | Scanalyzed Xenon Bombardment Thruster | -4/Factory | Scanalyzed Adv. Melee Analysis Suite | -4/Factory | Scanalyzed Imp. Core Shielding | -4/Factory | Scanalyzed EM Shield | -4/Factory | Scanalyzed Focal Shield | -4/Factory | Scanalyzed Biomechanical Wings | -3/Research | Scanalyzed Adv. Actuator Array | -3/Research | Scanalyzed Robot Schematics ------------------ None Fabricated ------------ B-48 Gladiator | x3 | -7/Factory | Preloaded Power Sword | x2 | -3/Research Repaired ---------- Lgt. Treads | 24% | -10/Materials Lrg. Storage Unit | 67% | -9/Materials Imp. Light Armor Plating | 33% | -9/Materials Imp. Propulsion Shielding | 25% | -8/Materials Cesium-ion Thruster | 8% | -7/Factory Xenon Bombardment Thruster | 6% | -5/Factory Xenon Bombardment Thruster | 3% | -5/Factory Q-thruster | 99% | -2/Research | Broken Lrg. Storage Unit | 6% | -2/Research Biomechanical Wings | 99% | -2/Research | Broken Studied --------- Lgt. Treads | -9/Materials | Hacked Lgt. Ion Engine | -9/Materials | Hacked Wheel | -8/Materials | Hacked Lgt. Nuclear Core | -8/Materials | Hacked Powered Hammer | -7/Factory | Hacked Arm. Wheel | -7/Factory | Hacked Arm. Huge Wheel | -7/Factory | Hacked Cesium-ion Thruster | -7/Factory | Hacked Katana | -7/Factory | Hacked Surge Thruster | -5/Factory | Hacked Nuclear Pulse Thruster | -5/Factory | Hacked Field Propulsion Array | -4/Factory | Hacked Power Sword | -4/Factory | Hacked Hvy. Pick | -4/Factory | Hacked Mic. Fission Core | -4/Factory | Hacked Xenon Bombardment Thruster | -4/Factory | Hacked Field Propulsion Drive | -3/Research | Hacked Q-thruster | -2/Research | Hacked Alien Tech Used ----------------- None Achievements -------------- Botjacking Release The Drones! Challenges ------------ None Game ------ Seed SalvagingSixStorage Manual? 0 Play Time 08:26:31 Cumulative 88.1 hours Start 2026.08.19 @ 23:19:47 End 2026.08.22 @ 00:34:05 Sessions 24 Manual Loads 0 Difficulty Rogue Special Mode None Game No. 54 Rogue 54 Adventurer 0 Explorer 0 Win Type - Total 0 Types 0/0/0/0/0/0/0/0/0/0 Lore% 31 Gallery% 39 Achievement% 30 Wizard Run 0 Options --------- Layout 0 ASCII 0 Keyboard 1 Movement Vi Keybinds 0 Fullscreen 2 Font 18/SmallcapsGlow Map View 76x50 Zoom Use 0% Tactical HUD 1 Map Filters NONE Filters NONE Steam 1 RUN: f9df0392-26bf-4c77-969a-0a37c792f4cf